bitfinex/quotes_SOLUSD_20220119
["timestamp","ask_amount","ask_price","bid_price","bid_amount"]
[1642571881337,13.89619997,138.14,138.09,41.98008162]
[1642571881538,13.89619997,138.14,138.09,39.08508162]
[1642571881736,0.25,138.13,138.09,39.08508162]
[1642571882138,13.89619997,138.14,138.09,39.08508162]
[1642571882637,0.25,138.13,138.09,39.08508162]
[1642571883242,10.864,138.14,138.09,39.08508162]
[1642571884140,0.25,138.13,138.09,39.08508162]
[1642571886942,10.864,138.14,138.09,39.08508162]
[1642571890049,10.8632,138.15,138.09,39.08508162]
[1642571890249,0.25,138.14,138.09,39.08508162]
[1642571894052,6.50217208,138.17,138.1,3.146]
[1642571894256,1.56527713,138.17,138.11,23.5907]
[1642571894652,1.56527713,138.17,138.12,0.25]
[1642571894852,43.23145797,138.17,138.12,0.25]
[1642571895552,54.09315797,138.17,138.12,0.25]
[1642571896557,0.25,138.16,138.11,23.5907]
[1642571897355,11.1124,138.16,138.11,23.5907]
[1642571898087,14.0074,138.16,138.11,23.5907]
[1642571899591,3.145,138.16,138.11,23.5907]
[1642571901092,14.0075,138.16,138.11,23.5907]
[1642571904391,16.04839495,138.16,138.11,23.5907]
[1642571907893,16.04839495,138.16,138.09,39.08508162]
[1642571908095,2.04089495,138.15,138.09,39.08508162]
[1642571908295,3.146,138.14,138.09,39.08508162]
[1642571908496,11.1142,138.14,138.09,39.08508162]
[1642571909399,39.97751068,138.13,138.09,39.08508162]
[1642571909602,50.84281068,138.13,138.09,39.08508162]
[1642571909799,0.25,138.12,138.09,39.08508162]
[1642571909999,10.8653,138.13,138.09,39.08508162]
[1642571910400,2.896,138.15,138.09,39.08508162]
[1642571910801,0.25,138.14,138.09,39.08508162]
[1642571911802,0.25,138.14,138.09,49.94758162]
[1642571912209,0.25,138.14,138.09,39.08508162]
[1642571913407,11.1141,138.14,138.09,39.08508162]
[1642571916113,0.25,138.14,138.09,39.08508162]
[1642571917414,0.25,138.14,138.09,49.94768162]
[1642571920017,2.896,138.15,138.1,0.25]
[1642571920819,2.396,138.15,138.1,0.25]
[1642571921219,2.396,138.15,138.1,23.168]
[1642571927430,2.396,138.15,138.1,34.0299]
[1642571927626,2.04089495,138.16,138.11,8.895]
[1642571927832,2.04089495,138.16,138.12,0.25]
[1642571928028,3.60617208,138.17,138.12,0.25]
[1642571928228,1.56527713,138.17,138.12,0.25]
[1642571928426,1.56527713,138.17,138.12,22.8045]
[1642571932228,4.46027713,138.17,138.12,22.8045]
[1642571933229,1.56527713,138.17,138.12,22.8045]
[1642571933430,3.60617208,138.17,138.12,22.8045]
[1642571933831,1.56527713,138.17,138.12,22.8045]
[1642571934634,4.46027713,138.17,138.12,22.8045]
[1642571934831,6.50117208,138.17,138.12,22.8045]
[1642571935431,4.46027713,138.17,138.12,22.8045]
[1642571935935,6.50117208,138.17,138.12,22.8045]
[1642571939564,4.46027713,138.17,138.12,22.8045]
[1642571940169,2.895,138.2,138.14,69.0]
[1642571940368,4.04885912,138.22,138.16,61.0]
[1642571940567,4.04885912,138.25,138.17,8.894]
[1642571940768,8.14244793,138.27,138.17,15.78180907]
[1642571940969,40.23677623,138.27,138.18,48.46866795]
[1642571941169,40.23677623,138.27,138.19,0.25]
[1642571941370,40.23677623,138.27,138.19,11.104]
[1642571941371,2.892,138.26,138.19,11.104]
[1642571941568,3.142,138.26,138.19,11.104]
[1642571941969,2.892,138.26,138.19,11.104]
[1642571942169,2.892,138.26,138.19,12.45980907]
[1642571942571,2.892,138.28,138.2,8.892]
[1642571942776,2.892,138.31,138.22,10.8506]
[1642571942975,2.892,138.31,138.23,2.892]
[1642571943173,2.892,138.31,138.23,3.142]
[1642571943373,39.23506491,138.3,138.24,43.57282234]
[1642571943674,2.892,138.31,138.25,0.25]
[1642571943874,2.892,138.32,138.25,0.25]
[1642571944073,2.892,138.32,138.25,11.1004]
[1642571944279,1.57110356,138.34,138.26,2.892]
[1642571944280,2.892,138.33,138.26,2.892]
[1642571944474,1.57110356,138.34,138.26,8.26]
[1642571944680,1.57110356,138.34,138.27,54.45058063]
[1642571944876,1.57110356,138.34,138.28,2.892]
[1642571945077,1.57110356,138.34,138.28,4.24780907]
[1642571945277,1.57110356,138.34,138.3,10.8457]
[1642571945477,1.57110356,138.34,138.31,35.66302746]
[1642571945778,1.57110356,138.34,138.31,35.91302746]
[1642571945976,1.57110356,138.34,138.32,3.03219997]
[1642571948579,1.57110356,138.34,138.32,13.87719997]
[1642571948779,1.57110356,138.34,138.33,0.25]
[1642571951985,10.8451,138.39,138.33,6.188]
[1642571952184,2.891,138.4,138.33,19.9231]
[1642571952382,2.891,138.4,138.33,17.0321]
[1642571952582,1.13800377,138.41,138.34,2.89]
[1642571952783,1.13800377,138.41,138.35,0.25]
[1642571952982,1.13800377,138.41,138.35,45.19292298]
[1642571953586,1.13800377,138.41,138.36,10.8415]
[1642571953784,4.02800377,138.41,138.37,0.25]
[1642571957687,0.25,138.4,138.34,10.8428]
[1642571957985,2.89,138.39,138.33,22.505]
[1642571958587,40.43581297,138.38,138.33,22.505]
[1642571958986,51.28121297,138.38,138.34,0.25]
[1642571959791,51.28121297,138.38,138.33,22.505]
[1642571959987,8.891,138.37,138.32,2.891]
[1642571960187,10.8473,138.36,138.28,23.7099]
[1642571960488,2.891,138.35,138.28,23.7099]
[1642571960687,2.891,138.37,138.29,2.891]
[1642571960888,8.65,138.39,138.29,12.20980907]
[1642571961089,47.6889,138.43,138.31,10.845]
[1642571961389,10.8443,138.4,138.32,23.7549]
[1642571961692,36.2649648,138.39,138.33,55.45820223]
[1642571962487,36.2649648,138.39,138.34,10.8435]
[1642571962688,36.2649648,138.39,138.35,0.25]
[1642571966091,10.8443,138.4,138.35,0.25]
[1642571966291,13.7343,138.41,138.35,0.25]
[1642571967192,37.76022718,138.4,138.35,0.25]
[1642571969395,37.76022718,138.4,138.34,10.8435]
[1642571969596,2.89,138.39,138.35,0.25]
[1642571976633,2.89,138.39,138.33,2.89]
[1642571976832,0.25,138.38,138.33,2.89]
[1642571978238,0.25,138.38,138.32,74.30260284]
[1642571978435,0.25,138.38,138.33,6.25]
[1642571981239,0.25,138.38,138.33,17.0942]
[1642571990053,4.04885912,138.41,138.33,17.0942]
[1642571990252,4.04885912,138.41,138.34,27.321]
[1642571990455,8.13701595,138.41,138.35,10.842]
[1642571990655,8.13701595,138.41,138.36,2.89]
[1642571990853,8.13701595,138.42,138.37,39.64603289]
[1642571991053,8.13701595,138.42,138.37,39.89603289]
[1642571991254,8.13701595,138.42,138.37,0.25]
[1642571991458,4.04885912,138.4,138.36,2.89]
[1642571991655,6.93885912,138.39,138.36,2.89]
[1642571991855,7.18885912,138.39,138.36,2.89]
[1642571992054,6.93885912,138.39,138.36,2.89]
[1642571992255,5.92219997,138.38,138.36,2.89]
[1642571992456,6.17219997,138.38,138.36,2.89]
[1642571994058,3.03219997,138.38,138.36,2.89]
[1642571997466,3.03219997,138.38,138.33,8.89]
[1642571997666,3.03219997,138.38,138.34,0.25]
[1642571998267,37.10473961,138.37,138.34,0.25]
[1642571998669,6.93985912,138.4,138.35,3.03219997]
[1642571998967,4.04885912,138.4,138.35,3.03219997]
[1642571999168,8.14005196,138.4,138.36,0.25]
[1642571999390,10.04885912,138.41,138.36,0.25]
[1642571999792,35.27664703,138.4,138.36,0.25]
[1642572001796,46.12084703,138.4,138.36,0.25]
[1642572002096,50.16970615,138.4,138.36,0.25]
[1642572002497,50.16970615,138.4,138.35,0.25]
[1642572003097,50.16970615,138.4,138.34,27.6168]
[1642572003297,13.9853,138.39,138.34,2.89]
[1642572003498,8.14017054,138.38,138.34,2.89]
[1642572003696,43.79760636,138.37,138.34,2.89]
[1642572004096,3.03219997,138.36,138.34,2.89]
[1642572004300,3.141,138.35,138.34,2.89]
[1642572004910,0.25,138.35,138.34,2.89]
[1642572006700,5.92319997,138.36,138.34,2.89]
[1642572006902,3.03219997,138.36,138.34,2.89]
[1642572007502,13.738,138.37,138.35,3.03219997]
[1642572007799,52.54151591,138.36,138.35,3.03219997]
[1642572008000,13.87939997,138.36,138.34,2.89]
[1642572008199,3.03219997,138.36,138.34,2.89]
[1642572009605,3.03219997,138.36,138.31,34.87329889]
[1642572009806,3.03219997,138.36,138.32,0.25]
[1642572010532,3.03219997,138.36,138.32,6.25]
[1642572010707,3.03219997,138.36,138.32,0.25]
[1642572015009,47.04182187,138.35,138.32,0.25]
[1642572015212,47.04182187,138.35,138.3,2.891]
[1642572015415,49.93282187,138.35,138.29,24.2921]
[1642572015614,47.04182187,138.35,138.3,0.25]
[1642572016315,57.88972187,138.35,138.28,23.7099]
[1642572016514,57.88972187,138.35,138.26,2.891]
[1642572016515,3.141,138.34,138.26,2.891]
[1642572016815,10.22,138.34,138.26,2.891]
[1642572017017,71.96,138.32,138.26,2.891]
[1642572017215,3.142,138.31,138.26,2.891]
[1642572017416,10.8537,138.3,138.26,0.0001]
[1642572017615,10.8537,138.3,138.17,71.4755]
[1642572017616,2.892,138.29,138.17,10.6768]
[1642572017816,0.25,138.28,138.18,22.7377]
[1642572018044,2.892,138.27,138.18,22.7377]
[1642572018245,0.25,138.26,138.18,22.7377]
[1642572018445,2.892,138.27,138.19,47.86886268]
[1642572018646,2.892,138.29,138.2,2.893]
[1642572018846,13.302,138.3,138.21,24.0541]
[1642572019046,13.302,138.3,138.22,2.892]
[1642572019245,0.25,138.29,138.23,0.25]
[1642572019447,0.25,138.29,138.22,2.892]
[1642572019448,10.8535,138.28,138.22,2.892]
[1642572019650,56.26211907,138.28,138.23,38.41584973]
[1642572019846,2.892,138.28,138.24,0.25]
[1642572020048,10.41,138.3,138.24,3.142]
[1642572020448,10.41,138.3,138.24,2.892]
[1642572020647,0.25,138.29,138.24,2.892]
[1642572020846,2.892,138.28,138.23,38.41584973]
[1642572022448,13.7464,138.28,138.23,38.41584973]
[1642572022848,13.7464,138.28,138.24,0.25]
[1642572023054,10.8544,138.28,138.24,0.25]
[1642572023650,50.00890538,138.29,138.24,0.25]
[1642572023651,2.892,138.29,138.24,0.25]
[1642572023849,10.41,138.3,138.24,3.142]
[1642572024049,3.142,138.29,138.24,0.25]
[1642572025052,2.892,138.29,138.24,0.25]
[1642572025454,10.41,138.3,138.24,3.142]
[1642572025654,10.41,138.3,138.24,13.9933]
[1642572026053,10.41,138.3,138.24,3.142]
[1642572027263,13.302,138.3,138.24,3.142]
[1642572027456,2.892,138.32,138.24,3.142]
[1642572027652,1.16504765,138.33,138.25,24.725]
[1642572027653,4.05704765,138.33,138.25,24.725]
[1642572027852,1.16504765,138.33,138.26,2.892]
[1642572028053,1.16504765,138.33,138.27,24.2595]
[1642572028253,1.16504765,138.33,138.28,43.97035655]
[1642572029455,1.16504765,138.33,138.28,46.86235655]
[1642572029856,1.16504765,138.33,138.29,6.0]
[1642572030061,2.892,138.38,138.3,2.892]
[1642572030258,2.892,138.38,138.31,24.3599]
[1642572030458,2.892,138.38,138.32,41.60695368]
[1642572030658,2.892,138.38,138.32,41.85695368]
[1642572031456,2.892,138.38,138.32,52.70125368]
[1642572032959,1.44539151,138.39,138.32,52.70125368]
[1642572033459,1.44539151,138.39,138.33,6.0]
[1642572033657,1.44539151,138.39,138.34,10.8433]
[1642572033857,1.44539151,138.39,138.34,13.9833]
[1642572034060,1.44539151,138.39,138.35,6.0]
[1642572034259,1.44539151,138.39,138.36,0.25]
[1642572034459,3.03219997,138.38,138.37,3.03219997]
[1642572034657,3.03219997,138.38,138.36,0.25]
[1642572037160,3.03219997,138.38,138.37,3.03219997]
[1642572037661,3.03219997,138.38,138.37,3.28219997]
[1642572038863,3.03219997,138.38,138.37,3.03219997]
[1642572039066,3.03219997,138.38,138.35,53.69543781]
[1642572039264,3.03219997,138.38,138.36,3.28219997]
[1642572039465,3.03219997,138.38,138.36,0.25]
[1642572040565,3.03219997,138.38,138.37,3.03219997]
[1642572041165,1.44539151,138.39,138.37,3.03219997]
[1642572041664,1.44539151,138.39,138.35,53.69523781]
[1642572041964,1.44539151,138.39,138.35,42.85273781]
[1642572042565,1.44539151,138.39,138.36,0.25]
[1642572042764,1.44539151,138.39,138.37,3.03219997]
[1642572043468,2.89,138.38,138.33,22.9287]
[1642572043665,4.33639151,138.39,138.33,22.9287]
[1642572043865,1.44539151,138.39,138.34,0.25]
[1642572044066,49.21259592,138.38,138.34,0.25]
[1642572045267,2.89,138.38,138.34,0.25]
[1642572045467,13.7358,138.38,138.34,0.25]
[1642572047568,10.8458,138.38,138.34,0.25]
[1642572052601,12.29029151,138.39,138.34,0.25]
[1642572054006,15.18029151,138.39,138.34,0.25]
[1642572054203,36.27299223,138.38,138.34,0.25]
[1642572054403,47.11899223,138.38,138.34,0.25]
[1642572056205,47.11899223,138.38,138.34,47.74959093]
[1642572059005,0.25,138.37,138.31,10.8456]
[1642572059206,0.25,138.37,138.29,2.891]
[1642572059207,13.9875,138.37,138.29,2.891]
[1642572059408,24.3975,138.37,138.3,0.25]
[1642572060209,24.3975,138.37,138.29,2.891]
[1642572060412,10.8494,138.34,138.28,22.857]
[1642572060611,4.93675678,138.33,138.25,2.891]
[1642572060812,4.93675678,138.33,138.24,25.5948]
[1642572060813,2.04475678,138.32,138.24,25.5948]
[1642572061009,2.04475678,138.32,138.24,2.892]
[1642572061213,46.13451673,138.3,138.24,46.91316761]
[1642572061410,10.8541,138.29,138.24,44.02116761]
[1642572061614,13.7461,138.29,138.24,44.02116761]
[1642572061812,4.93675678,138.31,138.24,44.02116761]
[1642572062412,4.93675678,138.31,138.25,0.25]
[1642572062715,49.10807287,138.31,138.25,0.25]
[1642572063416,10.8519,138.3,138.25,0.25]
[1642572064619,0.25,138.29,138.2,2.892]
[1642572064815,10.8543,138.27,138.2,2.892]
[1642572065115,2.892,138.26,138.19,50.0928]
[1642572065315,3.142,138.26,138.19,47.2008]
[1642572065516,0.25,138.26,138.2,43.9721439]
[1642572065717,2.892,138.26,138.21,0.25]
[1642572065915,0.25,138.26,138.21,0.25]
[1642572066115,48.51130324,138.27,138.21,0.25]
[1642572066317,2.892,138.28,138.21,0.25]
[1642572066515,10.8557,138.26,138.21,6.25]
[1642572066718,2.892,138.29,138.21,28.8399]
[1642572066918,10.41,138.3,138.22,2.892]
[1642572067118,4.93675678,138.33,138.22,2.892]
[1642572067317,0.25,138.31,138.23,62.05653183]
[1642572067517,2.892,138.3,138.23,62.05653183]
[1642572067716,13.7444,138.3,138.23,62.05653183]
[1642572068828,49.24055433,138.29,138.23,61.80653183]
[1642572069022,13.7456,138.28,138.23,61.80653183]
[1642572069220,0.25,138.27,138.23,61.80653183]
[1642572069420,13.7456,138.28,138.23,61.80653183]
[1642572070426,13.7456,138.28,138.23,37.35083183]
[1642572071827,13.7456,138.28,138.21,2.892]
[1642572072025,13.7456,138.28,138.22,0.25]
[1642572072826,13.7456,138.28,138.22,45.17460286]
[1642572074431,10.8553,138.26,138.21,2.892]
[1642572074632,2.892,138.25,138.2,114.2]
[1642572074836,5.307,138.25,138.2,114.2]
[1642572075032,2.892,138.24,138.2,114.2]
[1642572075433,62.42158723,138.24,138.2,114.2]
[1642572076031,59.52958723,138.24,138.2,114.2]
[1642572077133,10.8567,138.24,138.2,114.2]
[1642572077337,10.856,138.25,138.2,114.2]
[1642572077734,2.892,138.26,138.21,0.25]
[1642572078259,34.83318127,138.25,138.21,0.25]
[1642572079462,45.68908127,138.25,138.21,0.25]
[1642572081566,45.68908127,138.25,138.18,10.8559]
[1642572081767,11.1068,138.24,138.19,0.25]
[1642572081969,20.0008,138.24,138.17,2.894]
[1642572082169,30.4108,138.24,138.17,2.894]
[1642572082373,37.4128,138.24,138.17,2.894]
[1642572083879,37.4128,138.24,138.16,37.77737249]
[1642572084076,37.4128,138.24,138.17,0.25]
[1642572084276,37.4128,138.24,138.15,25.4585]
[1642572084478,37.4128,138.24,138.15,22.5645]
[1642572084677,71.96,138.23,138.15,22.5645]
[1642572084879,10.8608,138.21,138.15,22.5645]
[1642572085277,6.25,138.2,138.15,22.5645]
[1642572085476,41.75688901,138.19,138.15,22.5645]
[1642572085877,41.75688901,138.19,138.14,23.9021]
[1642572085878,52.61758901,138.19,138.14,23.9021]
[1642572086080,3.145,138.18,138.1,13.9901]
[1642572086280,3.145,138.18,138.11,23.6384]
[1642572088477,16.8626,138.17,138.11,23.6384]
[1642572088677,10.8626,138.17,138.12,0.25]
[1642572088879,2.895,138.22,138.12,0.25]
[1642572089076,16.41,138.21,138.12,0.25]
[1642572089312,16.66,138.21,138.13,2.894]
[1642572089511,2.895,138.2,138.13,2.894]
[1642572089712,10.8614,138.19,138.14,0.25]
[1642572089911,0.25,138.18,138.13,39.1214934]
[1642572090115,6.25,138.18,138.12,2.895]
[1642572090317,2.895,138.17,138.11,24.3011]
[1642572090811,0.25,138.16,138.11,24.3011]
[1642572091012,0.25,138.16,138.12,42.80837795]
[1642572091415,13.7579,138.17,138.12,42.80837795]
[1642572091616,10.8629,138.17,138.12,42.80837795]
[1642572091814,0.25,138.16,138.12,42.80837795]
[1642572092413,10.8629,138.17,138.12,42.80837795]
[1642572093818,6.0,138.16,138.12,42.80837795]
[1642572095818,16.8631,138.16,138.12,42.80837795]
[1642572097421,16.8631,138.16,138.11,24.3011]
[1642572097722,16.8631,138.16,138.09,2.895]
[1642572097723,13.555,138.15,138.09,2.895]
[1642572097919,10.8671,138.14,138.09,2.895]
[1642572098121,2.896,138.13,138.09,2.895]
[1642572098418,3.146,138.13,138.09,38.20328269]
[1642572099019,14.0122,138.13,138.09,38.20328269]
[1642572103326,14.0122,138.13,138.06,24.9883]
[1642572103627,14.0122,138.13,138.07,0.25]
[1642572104324,14.0122,138.13,138.07,49.42591702]
[1642572106529,10.8662,138.13,138.07,52.32191702]
[1642572107634,43.39537575,138.12,138.07,52.32191702]
[1642572108929,54.26177575,138.12,138.07,2.896]
[1642572109728,10.8664,138.12,138.07,2.896]
[1642572110633,50.16392612,138.12,138.07,51.77875994]
[1642572111632,50.16392612,138.12,138.07,48.88275994]
[1642572112633,16.8671,138.11,138.06,24.9883]
[1642572112835,16.8671,138.11,138.07,0.25]
[1642572113538,10.8671,138.11,138.07,0.25]
[1642572113835,10.8671,138.11,138.07,43.77324231]
[1642572114040,53.05982612,138.12,138.07,43.77324231]
[1642572114535,53.05982612,138.12,138.07,43.52324231]
[1642572114738,53.05982612,138.12,138.06,24.9883]
[1642572114739,42.19352612,138.12,138.06,24.9883]
[1642572115438,10.867,138.11,138.06,24.9883]
[1642572115638,10.867,138.11,138.06,70.2870348]
[1642572117841,2.896,138.1,138.04,2.896]
[1642572118044,10.8693,138.09,138.04,2.896]
[1642572118244,3.146,138.08,138.04,2.896]
[1642572118844,37.78544166,138.07,138.04,2.896]
[1642572119248,6.17819997,138.06,138.04,2.896]
[1642572119447,12.17819997,138.06,138.04,2.896]
[1642572119647,12.17819997,138.06,137.98,28.24483708]
[1642572119847,12.17819997,138.06,137.99,6.0]
[1642572120544,23.04959997,138.06,137.99,6.0]
[1642572121346,23.04959997,138.06,138.0,47.00813109]
[1642572121847,12.17819997,138.06,138.0,47.00813109]
[1642572122452,11.92819997,138.06,138.0,47.00813109]
[1642572123676,0.25,138.05,138.0,47.00813109]
[1642572124076,0.25,138.05,138.0,48.36065253]
[1642572124274,0.25,138.05,138.0,47.00813109]
[1642572127982,0.25,138.05,138.0,46.00813109]
[1642572129485,0.25,138.05,137.99,6.0]
[1642572129686,0.25,138.05,138.0,0.25]
[1642572130487,0.25,138.05,137.98,72.17423609]
[1642572130687,42.35876863,138.03,137.98,69.27823609]
[1642572130890,2.898,138.04,137.98,69.27823609]
[1642572131088,3.148,138.05,137.98,69.27823609]
[1642572131288,0.25,138.05,137.99,2.898]
[1642572131688,6.25,138.05,137.99,2.898]
[1642572131887,41.87709317,138.05,137.99,2.898]
[1642572132089,6.25,138.05,137.99,2.898]
[1642572132389,6.0,138.05,138.0,0.25]
[1642572132588,2.898,138.11,138.0,0.25]
[1642572132787,10.66,138.1,138.0,24.5394]
[1642572132989,2.896,138.09,138.0,24.5394]
[1642572133188,51.47579633,138.08,138.01,45.46317989]
[1642572133388,2.896,138.07,138.01,45.46317989]
[1642572133788,0.25,138.06,138.01,45.46317989]
[1642572135190,2.896,138.05,138.01,45.46317989]
[1642572136291,51.22579633,138.08,138.01,48.35917989]
[1642572136494,51.22579633,138.08,138.01,2.896]
[1642572136894,6.0,138.07,138.01,2.896]
[1642572137093,2.896,138.06,138.0,24.2894]
[1642572137694,2.896,138.06,138.01,36.02795406]
[1642572137893,8.896,138.07,138.01,36.02795406]
[1642572138094,0.25,138.06,138.0,24.2894]
[1642572139198,0.25,138.06,138.01,35.69559006]
[1642572139395,0.25,138.06,138.0,24.2894]
[1642572139596,2.896,138.05,138.0,24.2894]
[1642572139797,0.25,138.04,138.0,24.2894]
[1642572140096,6.0,138.04,137.96,27.8622]
[1642572140296,6.25,138.04,137.97,29.6183]
[1642572140497,6.25,138.04,137.98,48.31307812]
[1642572141400,1.9402394,138.0,137.98,48.31307812]
[1642572141601,1.9402394,138.0,137.99,3.03219997]
[1642572141836,7.32969807,138.0,137.98,48.31307812]
[1642572142227,7.32969807,138.0,137.97,23.3683]
[1642572142427,7.32969807,138.0,137.93,2.898]
[1642572142628,9.149,137.99,137.93,24.4764]
[1642572143127,54.4007921,137.99,137.93,24.4764]
[1642572143730,9.149,137.99,137.93,24.4764]
[1642572143929,8.899,137.99,137.94,6.0]
[1642572144131,4.2974981,138.0,137.94,1.60802808]
[1642572144328,4.2974981,138.0,137.94,0.25]
[1642572144528,0.25,137.99,137.94,0.25]
[1642572144732,0.25,137.99,137.94,41.63342084]
[1642572145429,4.2974981,138.0,137.94,41.63342084]
[1642572145628,0.25,137.99,137.94,42.99144892]
[1642572147432,0.25,137.99,137.94,42.74144892]
[1642572147736,7.92420402,137.99,137.94,41.38342084]
[1642572147931,2.899,137.98,137.94,41.38342084]
[1642572148130,59.35620707,137.99,137.94,41.38342084]
[1642572148431,10.19320402,137.99,137.94,41.38342084]
[1642572148631,10.19320402,137.99,137.95,0.25]
[1642572148833,1.29420402,137.99,137.95,7.60802808]
[1642572149032,2.899,138.06,137.97,36.0]
[1642572149334,13.309,138.06,137.98,0.25]
[1642572149532,6.0,138.05,137.97,52.06527319]
[1642572149733,8.898,138.05,137.97,50.70724511]
[1642572149932,8.898,138.05,137.98,1.60802808]
[1642572150133,8.898,138.05,137.98,4.50602808]
[1642572150732,8.898,138.05,137.98,28.44262808]
[1642572151134,8.898,138.05,137.98,25.54462808]
[1642572151838,6.0,138.05,137.98,25.54462808]
[1642572152033,2.898,138.07,137.98,28.44262808]
[1642572152034,6.0,138.06,137.98,28.44262808]
[1642572152234,1.9853816,138.03,137.98,28.44262808]
[1642572152835,1.9853816,138.03,137.99,6.0]
[1642572152836,3.01764,138.03,137.99,6.0]
[1642572153035,3.01764,138.03,138.0,41.27237616]
[1642572153234,2.898,138.1,138.02,29.0]
[1642572153535,2.898,138.1,138.03,23.2717]
[1642572153735,0.25,138.09,138.03,23.5217]
[1642572153937,0.25,138.11,138.03,23.5217]
[1642572154134,2.896,138.1,138.04,40.40963769]
[1642572154338,45.19036944,138.11,138.05,0.25]
[1642572154536,3.146,138.11,138.05,0.25]
[1642572155737,2.896,138.11,138.05,5.834]
[1642572155938,4.40587608,138.13,138.06,2.896]
[1642572156139,1.50987608,138.13,138.06,8.896]
[1642572156339,1.50987608,138.13,138.07,0.25]
[1642572156542,1.50987608,138.13,138.07,49.61957107]
[1642572156740,1.50987608,138.13,138.08,2.896]
[1642572156942,1.50987608,138.13,138.08,9.811]
[1642572157139,1.50987608,138.13,138.09,0.25]
[1642572157539,1.50987608,138.13,138.1,2.896]
[1642572157738,2.04475678,138.18,138.1,2.896]
[1642572157739,2.04475678,138.18,138.11,3.28219997]
[1642572157940,2.896,138.19,138.12,38.77521307]
[1642572157941,2.04475678,138.19,138.12,38.77521307]
[1642572158141,39.37922108,138.2,138.12,38.77521307]
[1642572158340,39.37922108,138.2,138.13,0.25]
[1642572158741,2.895,138.2,138.13,0.25]
[1642572159141,2.895,138.2,138.13,11.1095]
[1642572159344,2.895,138.2,138.13,28.87752808]
[1642572159547,2.895,138.23,138.14,2.895]
[1642572159744,2.895,138.23,138.15,44.6580169]
[1642572159944,4.93875678,138.25,138.15,44.6580169]
[1642572160146,2.894,138.25,138.15,44.6580169]
[1642572160345,4.93875678,138.27,138.16,2.894]
[1642572160748,4.93875678,138.27,138.17,0.25]
[1642572160949,49.2577943,138.26,138.17,0.25]
[1642572161149,2.894,138.25,138.17,0.25]
[1642572161349,0.25,138.25,138.17,0.25]
[1642572161548,2.894,138.24,138.17,0.25]
[1642572161954,3.144,138.26,138.17,0.25]
[1642572162156,45.56376829,138.25,138.17,6.25]
[1642572162355,56.42046829,138.25,138.18,43.01969249]
[1642572162557,3.144,138.24,138.18,43.01969249]
[1642572162756,2.894,138.24,138.18,43.01969249]
[1642572162957,2.894,138.24,138.19,0.25]
[1642572163558,13.7506,138.24,138.19,0.25]
[1642572163767,2.894,138.26,138.19,0.25]
[1642572164059,2.892,138.27,138.19,6.25]
[1642572164259,2.892,138.28,138.19,6.25]
[1642572164461,2.892,138.29,138.19,6.0]
[1642572164662,45.95945275,138.28,138.18,43.01969249]
[1642572164859,51.95945275,138.28,138.19,0.25]
[1642572165060,2.892,138.27,138.19,6.25]
[1642572165259,3.142,138.27,138.19,6.25]
[1642572165462,6.0,138.26,138.19,6.0]
[1642572165661,45.62158837,138.25,138.19,6.0]
[1642572165862,45.87158837,138.25,138.19,6.0]
[1642572166464,56.72758837,138.25,138.19,6.0]
[1642572166665,56.72758837,138.25,138.18,6.0]
[1642572166865,56.72758837,138.25,138.18,6.25]